[Event "41st Zalakaros Festival 2022"]
[Site "Zalakaros"]
[Date "2022.06.12"]
[Round "8.6"]
[White "Pranav Vijay"]
[Black "Fodor, Balazs"]
[Result "1-0"]
[ECO "B98"]
[WhiteElo "2265"]
[BlackElo "2126"]
[Annotator "TA"]
[PlyCount "71"]
[EventDate "2022.06.05"]
[EventType "swiss"]
[EventCountry "HUN"]
[SourceTitle "playchess.com"]
[Source "ChessBase"]
[SourceQuality "1"]
[TimeControl "40/5400+30:1800+30"]

{[%evp 15,71,14,0,-25,21,28,181,94,90,90,256,75,209,104,119,111,86,83,107,110,125,111,112,118,138,129,178,141,196,151,146,131,110,63,95,140,154,198,295,231,362,391,555,554,555,558,543,540,553,554,766,675,878,827,820,583,816,803]} 1. e4 {[%emt 0:00:31]} c5 {[%emt 0:00:38]} 2. Nf3 {[%emt 0:00:05]} d6 {[%emt 0:00:10]} 3. d4 {[%emt 0:00:10]} cxd4 {[%emt 0:00:08]} 4. Nxd4 {[%emt 0:00:03]} Nf6 {[%emt 0:00:12]} 5. Nc3 {[%emt 0:00:07]} a6 {[%emt 0:00:32]} 6. Bg5 {[%emt 0:00:06][%cal Bc1g5,Bg5h4,Bh4g3][%mdl 32]} e6 {[%emt 0:00:34]} 7. f4 {[%emt 0:00:06]} Be7 {[%emt 0:00:28]} 8. Qe2 {[%emt 0:01:48]} h6 {[%emt 0:01:55]} 9. Bh4 {[%emt 0:06:41] [#] B98: Sicilian Najdorf: 6 Bg5 e6 7 f4 Be7, sidelines.} g5 {[%emt 0:05:37]} (9... Nxe4 $142 $1 10. Bxe7 (10. Qxe4 Bxh4+ 11. g3 Bf6 $17) 10... Nxc3 11. Bxd8 Nxe2 12. Bxe2 Kxd8) 10. fxg5 $11 {[%emt 0:01:10]} Nh7 {[%emt 0:02:16]} (10... hxg5 $11 {and Black has nothing to worry.} 11. Bxg5 Nxe4 12. Bxe7 (12. Nxe4 Bxg5 13. Nxg5 Qxg5 $11) 12... Nxc3 13. Qxe6 (13. Bxd8 Nxe2 14. Bf6 Rh6 $11) (13. bxc3 Qxe7 14. g3 e5 $15) 13... fxe6 14. Bxd8 Kxd8 15. bxc3 e5) 11. O-O-O {[%emt 0:01:45]} (11. Bg3 $18) 11... hxg5 $16 {[%emt 0:01:12]} 12. Bg3 {[%emt 0:00:43] aiming for e5. 0x0.002b0b434503dp-1022s more active pieces.} Nd7 {[%emt 0:03:10] [#]} (12... Nf8 $16) 13. Kb1 $146 {[%emt 0:11:03]} ({Weaker is} 13. Nxe6 fxe6 14. e5 (14. Qh5+ Kf8 $11) 14... O-O $14) (13. e5 $1 $18 {[%cal Od4e6] Nxe6! is the strong threat.} dxe5 14. Nxe6 $1 {[%mdl 512]} (14. Bxe5 Nhf6 $18) 14... fxe6 15. Qh5+ Kf8 16. Bd3 (16. Bc4 Bf6 $16)) ({Predecessor:} 13. e5 dxe5 14. Bxe5 Nxe5 15. Nxe6 Qd2+ 16. Rxd2 Bxe6 17. Qxe5 {1-0 (17) Cordeiro,V-Slekys,E ICCF corr 1996}) 13... Nhf8 {[%emt 0:07:37] [#]} (13... Nhf6 $16) 14. Nf3 {[%emt 0:01:34]} (14. Nf5 $1 $18 {[%cal Rf5g7][%mdl 512] and the rest is easy.} exf5 15. exf5) 14... g4 {[%emt 0:06:29]} 15. Nd2 {[%emt 0:00:11]} b5 {[%emt 0:00:19] Against Nc4} 16. Qxg4 {[%emt 0:01:44]} Ng6 {[%emt 0:02:04]} 17. a3 {[%emt 0:06:22]} Rb8 {[%emt 0:08:12]} 18. Qe2 {[%emt 0:04:39]} Qc7 {[%emt 0:03:52]} 19. Nb3 {[%emt 0:02:34]} Nde5 {[%emt 0:04:41]} 20. Qe1 {[%emt 0:01:16]} Bd7 {[%emt 0:04:38] [#]} (20... Nh4 $16 {might work better.} 21. Bxe5 dxe5) 21. h4 $1 $18 {[%emt 0:05:06][%cal Bh2h4,Bh4h5][%mdl 32]} Nc4 {[%emt 0:03:13]} (21... Ng4 $16 22. h5 N6e5) 22. h5 {[%emt 0:01:02][%cal Oh5g6]} Nge5 {[%emt 0:00:11]} 23. Rh3 {[%emt 0:01:41]} a5 {[%emt 0:05:16]} 24. Na2 {[%emt 0:00:22]} (24. h6 $16) 24... Bf6 $14 {[%emt 0:02:59][%cal Oc4b2]} 25. Bh4 {[%emt 0:00:59]} Bxh4 {[%emt 0:03:32]} 26. Qxh4 {[%emt 0:00:24]} b4 {[%emt 0:06:04]} (26... Qb6 {is a better defense.} 27. Nd4 Kf8) 27. axb4 {[%emt 0:01:59]} axb4 {[%emt 0:00:17]} (27... Rc8 $142 28. Bxc4 Nxc4) 28. Qf6 $18 {[%emt 0:00:39]} Rf8 {[%emt 0:01:25]} (28... Rg8 {was called for.} 29. Bxc4 Qxc4) 29. h6 {[%emt 0:01:30] White is clearly winning.} Qd8 {[%emt 0:03:50]} 30. Qg7 {[%emt 0:00:41]} Ke7 {[%emt 0:01:04]} 31. h7 {[%emt 0:00:06] Against Rg8. Hoping for Rh6.} Rh8 {[%emt 0:01:29]} 32. Bxc4 {[%emt 0:08:31]} Nxc4 {[%emt 0:00:37]} 33. g4 {[%emt 0:00:14][%cal Bg2g4,Bg4g5][%mdl 32]} Ne5 {[%emt 0:01:23]} 34. g5 {[%emt 0:00:19] Threatening mate with Qf6+.} Qf8 {[%emt 0:00:13]} 35. Qf6+ {[%emt 0:00:09]} Ke8 {[%emt 0:00:15] [#]} 36. Rxd6 $3 {[%emt 0:00:51][%mdl 512] Weighted Error Value: White=0.26 (precise) /Black=0.46} 1-0

[Event "41st Zalakaros Festival 2022"]
[Site "Zalakaros"]
[Date "2022.06.12"]
[Round "8.7"]
[White "Papp, Levente"]
[Black "Sulyok, Eszter"]
[Result "1-0"]
[ECO "A22"]
[WhiteElo "2401"]
[BlackElo "2068"]
[Annotator "TA"]
[PlyCount "71"]
[EventDate "2022.06.05"]
[EventType "swiss"]
[EventCountry "HUN"]
[SourceTitle "playchess.com"]
[Source "ChessBase"]
[SourceQuality "1"]
[TimeControl "40/5400+30:1800+30"]

{[%evp 10,71,29,16,26,20,25,0,0,0,25,19,15,0,20,0,0,0,0,0,0,-35,20,29,41,-29,-31,-39,-32,-52,-41,-50,-38,-66,-64,-59,-68,-64,0,-31,0,0,0,0,0,0,312,307,307,302,279,255,233,250,237,209,441,441,438,419,417,403,759,727]} 1. c4 {[%emt 0:00:48]} e5 {[%emt 0:01:04]} 2. Nc3 {[%emt 0:01:04]} Nf6 {[%emt 0:01:24]} 3. g3 {[%emt 0:00:10]} Nc6 {[%emt 0:01:30]} 4. Bg2 {[%emt 0:00:16]} Bc5 {[%emt 0:00:59]} 5. e3 {[%emt 0:00:06]} d5 {[%emt 0:02:11]} 6. Nxd5 {[%emt 0:07:50]} Nxd5 {[%emt 0:01:31] A25: English Opening vs King's Indian with ...Nc6 but without early d3.} 7. cxd5 {[%emt 0:00:06]} Nb4 {[%emt 0:00:48]} 8. d3 {[%emt 0:01:03]} Nxd5 {[%emt 0:07:43] The position is equal.} 9. Nf3 $1 {[%emt 0:00:07] 9.Nf3 scores better than 9.a3.} Bd6 {[%emt 0:09:39]} 10. O-O {[%emt 0:01:51]} O-O {[%emt 0:00:55]} 11. a3 {[%emt 0:05:55]} c6 {[%emt 0:01:40]} 12. Qc2 {[%emt 0:00:40]} Re8 {[%emt 0:03:55]} 13. b3 {[%emt 0:01:05]} a5 {[%emt 0:04:46]} 14. Bb2 {[%emt 0:00:37]} Bg4 {[%emt 0:13:22] [#]} 15. d4 $146 {[%emt 0:14:52]} ({Predecessor:} 15. Rfe1 Bh5 16. e4 Nc7 17. d4 Bxf3 18. Bxf3 exd4 19. Bxd4 Bxg3 20. Bxg7 Bxh2+ 21. Kxh2 {0-1 (44) Noroozi,O (2194)-Wang,H (2433) Calicut 2004}) 15... Bxf3 {[%emt 0:04:57]} ({Black should play} 15... e4 $15 16. Nd2 Bf5) 16. Bxf3 $11 {[%emt 0:00:06]} Nf6 {[%emt 0:01:15]} 17. Rfd1 {[%emt 0:21:58]} (17. dxe5 $14 Bxe5 18. Rfd1) 17... e4 {[%emt 0:11:47]} 18. Bg2 {[%emt 0:01:02][%cal Ob3b4]} Qe7 {[%emt 0:00:25]} 19. Re1 {[%emt 0:12:06]} Nd5 {[%emt 0:01:53]} 20. Bc1 {[%emt 0:00:23]} Kh8 {[%emt 0:06:15]} 21. f3 {[%emt 0:03:04][%cal Rf3e4]} f5 {[%emt 0:01:13][%cal Bf7f5,Bf5e4][%mdl 32]} 22. fxe4 {[%emt 0:06:55]} fxe4 {[%emt 0:00:07]} 23. Qe2 {[%emt 0:00:13]} Nc3 {[%emt 0:04:17]} (23... g6 $15) 24. Qg4 {[%emt 0:01:08]} Nb5 {[%emt 0:00:39]} 25. Rf1 {[%emt 0:03:19]} Bxa3 {[%emt 0:11:14]} 26. Bxa3 {[%emt 0:00:32]} Nxa3 {[%emt 0:00:05]} 27. Bxe4 {[%emt 0:06:49][%cal Oa1a3] Hoping for Rxa3!} Qxe4 $4 {[%emt 0:00:34][%mdl 8192] [#]} (27... g6 $11 {and Black stays safe.}) 28. Rf8+ $3 $18 {[%emt 0:00:07][%mdl 576] Deflection} Rxf8 {[%emt 0:00:17]} 29. Qxe4 {[%emt 0:00:02]} Rfe8 {[%emt 0:02:31]} 30. Qd3 {[%emt 0:02:33]} Nb5 {[%emt 0:02:01]} 31. d5 {[%emt 0:02:47]} Rad8 {[%emt 0:00:07]} 32. e4 {[%emt 0:00:12]} ({Much less strong is} 32. Rxa5 $6 Rxd5 33. Qe4 Nd6) 32... Nc7 $2 {[%emt 0:02:00]} (32... Nd6 {was necessary.} 33. Re1 (33. Rxa5 Nxe4 34. Qc4 b6 $16) 33... h6) 33. Qc4 {[%emt 0:00:40]} ({Less strong is} 33. d6 Nb5 34. d7 (34. Rxa5 Nxd6 35. Ra4 Nb5 $16) 34... Re6 $16) 33... Nb5 {[%emt 0:01:17]} 34. Rxa5 {[%emt 0:01:29]} Nd6 {[%emt 0:00:10]} 35. Qb4 {[%emt 0:00:11][%cal Oe4e5] Strongly threatening e5!} Rxe4 {[%emt 0:00:29] [#]} (35... Nxe4 $142 36. Qxb7 c5) 36. Qxd6 $3 {[%emt 0:00:19][%mdl 512] Weighted Error Value: White=0.13 (very precise) /Black=0.43} 1-0

[Event "41st Zalakaros Festival 2022"]
[Site "Zalakaros"]
[Date "2022.06.12"]
[Round "8.8"]
[White "Daroczi, Donat"]
[Black "Ianov, Viktor"]
[Result "1/2-1/2"]
[ECO "C41"]
[WhiteElo "2132"]
[BlackElo "2279"]
[Annotator "TA"]
[PlyCount "77"]
[EventDate "2022.06.05"]
[EventType "swiss"]
[EventCountry "HUN"]
[SourceTitle "playchess.com"]
[Source "ChessBase"]
[SourceQuality "1"]
[TimeControl "40/5400+30:1800+30"]

{[%evp 20,77,29,6,12,17,14,5,0,4,59,56,56,59,70,52,59,46,45,43,53,35,54,54,60,47,48,39,44,34,47,31,59,52,60,56,56,53,60,0,59,18,20,0,0,0,0,0,10,10,8,0,0,0,0,0,0,0,0,0]} 1. e4 {[%emt 0:00:34]} d6 {[%emt 0:00:38]} 2. d4 {[%emt 0:00:30]} Nf6 {[%emt 0:00:09]} 3. Nc3 {[%emt 0:00:06]} e5 {[%emt 0:00:08]} 4. Nf3 {[%emt 0:00:28]} Nbd7 {[%emt 0:00:09]} 5. Bc4 Be7 {[%emt 0:00:09]} 6. O-O {[%emt 0:00:09]} O-O {[%emt 0:00:09]} 7. Re1 {[%emt 0:00:04]} c6 {[%emt 0:00:11]} 8. a4 {[%emt 0:00:04]} a5 {[%emt 0:00:13]} 9. h3 {[%emt 0:00:09]} exd4 {[%emt 0:00:21]} 10. Nxd4 {[%emt 0:04:21]} Nc5 {[%emt 0:01:38]} 11. Bf4 {[%emt 0:07:42]} Be6 {[%emt 0:00:35] C41: Philidor Defence.} 12. Nxe6 {[%emt 0:03:31]} fxe6 {[%emt 0:02:00] [#]} 13. Bxd6 $1 {[%emt 0:11:05] is the legacy move (13.e5).} Bxd6 {[%emt 0:01:42]} 14. e5 {[%emt 0:01:21]} Nd5 {[%emt 0:01:07]} 15. exd6 $14 {[%emt 0:01:20]} Qxd6 {[%emt 0:00:21]} 16. Ne4 {[%emt 0:04:56]} Qf4 {[%emt 0:00:25] [#]} 17. f3 $146 {[%emt 0:01:14] [#] And now Bxd5 would win.} ({Predecessor:} 17. Qd4 Nd7 18. Rad1 Rf7 19. Ng3 Qh6 20. Qd2 Qf6 21. c3 Raf8 22. Ne4 Qg6 23. Kh1 {½-½ (76) Pichot,A (2630)-Yilmaz,M (2626) Chess.com INT 2021}) 17... Nd7 {[%emt 0:03:56]} 18. Qd2 {[%emt 0:08:43]} (18. Bb3 {with more complications.} Rad8 19. Qd4 h6 20. Rad1) 18... Qxd2 {[%emt 0:03:57]} 19. Nxd2 {[%emt 0:00:01]} Nc5 {[%emt 0:01:41]} 20. Ne4 {[%emt 0:11:56]} Nxe4 {[%emt 0:00:28]} 21. Rxe4 {[%emt 0:03:22]} Rf6 {[%emt 0:00:30]} 22. Rae1 {[%emt 0:02:37]} Kf7 {[%emt 0:02:53]} 23. Kf2 {[%emt 0:00:50]} Rd8 {[%emt 0:00:11]} 24. h4 {[%emt 0:06:27]} Rd6 {[%emt 0:01:21]} 25. g4 {[%emt 0:01:19]} Ke7 {[%emt 0:00:42]} 26. Kg3 {[%emt 0:01:47]} Kd7 {[%emt 0:01:11]} 27. Re5 {[%emt 0:05:52]} b6 {[%emt 0:00:39]} 28. Rg5 {[%emt 0:03:25]} Rf7 {[%emt 0:01:26]} 29. Rge5 {[%emt 0:00:06]} ({White should play} 29. Rh5 $14) 29... Nc7 {[%emt 0:02:20]} (29... Rf6 $1 $11) 30. f4 Rd4 {[%emt 0:01:01][%csl LRc4,LRf4] The position is equal.} 31. Bxe6+ {[%emt 0:08:35]} Nxe6 {[%emt 0:00:49]} 32. Rxe6 {[%emt 0:00:01]} Rdxf4 $11 {[%emt 0:00:21][%mdl 4096] Endgame Threatens to win with ...Rf3+. KRR-KRR} 33. Re7+ $1 {[%emt 0:00:06]} Kd6 {[%emt 0:03:06]} 34. R1e6+ {[%emt 0:02:46]} Kd5 {[%emt 0:00:12]} 35. Re5+ {[%emt 0:00:13]} Kd6 {[%emt 0:00:18]} 36. R7e6+ {[%emt 0:00:22]} Kd7 {[%emt 0:00:11] Hoping for ...Rf3+.} 37. Re7+ $1 {[%emt 0:00:04]} Kd6 {[%emt 0:00:10]} 38. R7e6+ {[%emt 0:00:07]} Kd7 {[%emt 0:00:09] ...Rf3+ is the strong threat.} 39. Re7+ $1 {[%emt 0:00:04] Weighted Error Value: White=0.11 (very precise) /Black=0.12 (very precise)} 1/2-1/2

[Event "41st Zalakaros Festival 2022"]
[Site "Zalakaros"]
[Date "2022.06.12"]
[Round "8.9"]
[White "Leszko, Bence"]
[Black "Nemeth, Zalan"]
[Result "0-1"]
[ECO "B01"]
[WhiteElo "2248"]
[BlackElo "2177"]
[Annotator "TA"]
[PlyCount "68"]
[EventDate "2022.06.05"]
[EventType "swiss"]
[EventCountry "HUN"]
[SourceTitle "playchess.com"]
[Source "ChessBase"]
[SourceQuality "1"]
[TimeControl "40/5400+30:1800+30"]

{[%evp 9,68,0,0,0,0,-93,-53,-44,-49,-42,-51,-51,-31,-46,-32,-33,-35,-42,-46,-40,-18,-17,0,0,0,-44,-38,-35,-17,-21,-21,-27,374,393,1371,571,498,0,0,-266,-262,-558,-562,-549,-504,-524,-514,-515,-493,-489,0,-526,-492,-533,-507,-853,-810,-1078,-970,-1231,-1189]} 1. e4 {[%emt 0:14:21]} d5 {[%emt 0:00:58]} 2. Nc3 {[%emt 0:00:36]} d4 {[%emt 0:00:22]} 3. Nce2 {[%emt 0:00:10]} e5 {[%emt 0:00:31]} 4. Ng3 {[%emt 0:00:28]} c5 {[%emt 0:00:15]} 5. Bc4 {[%emt 0:00:21]} Nc6 {[%emt 0:00:21]} 6. d3 {[%emt 0:00:57] A00: Irregular Openings.} Nf6 {[%emt 0:05:54][%cal Ob7b5,Bg8f6,Bf6g4,Bg4e3][%mdl 32]} 7. f4 {[%emt 0:01:31]} (7. Nf3 $11 {keeps the balance.}) 7... exf4 {[%emt 0:03:04]} 8. Bxf4 {[%emt 0:00:09] Black is slightly better.} Bd6 {[%emt 0:00:13]} 9. Qd2 {[%emt 0:07:16] [#]} O-O $146 {[%emt 0:15:00]} ({Predecessor:} 9... Bxf4 10. Qxf4 Qa5+ 11. Qd2 Qxd2+ 12. Kxd2 Be6 13. Bb5 O-O 14. Bxc6 bxc6 15. Nf3 c4 16. Nxd4 cxd3 17. cxd3 {1-0 (36) Van Bentum,H-Reetz,H Mecklenburg VP 1994}) 10. Nf3 {[%emt 0:13:16]} Ng4 {[%emt 0:01:50]} 11. O-O {[%emt 0:01:45]} Bxf4 {[%emt 0:07:13]} 12. Qxf4 {[%emt 0:00:01]} Ne3 {[%emt 0:00:09]} 13. Rf2 {[%emt 0:05:29]} Be6 {[%emt 0:09:35]} 14. Bb3 {[%emt 0:02:20]} b5 {[%emt 0:08:55]} (14... a5 $5 {[%cal Ra5a4]}) 15. Nf1 {[%emt 0:05:07]} c4 {[%emt 0:03:20]} 16. dxc4 {[%emt 0:00:13]} Nxc4 {[%emt 0:01:14]} 17. Bxc4 {[%emt 0:04:20]} bxc4 {[%emt 0:00:14]} 18. Ng3 {[%emt 0:00:20]} Qb8 {[%emt 0:06:17]} 19. e5 {[%emt 0:01:15]} Qxb2 {[%emt 0:01:11]} 20. Raf1 {[%emt 0:00:05] Strongly threatening Nh5.} Rad8 $2 {[%emt 0:04:04][%mdl 8192]} (20... Qxa2 21. Qe4 Ne7 22. Ng5 $14 (22. Nxd4 Qa5 $15)) (20... Ne7 $11 {and Black has nothing to worry.}) 21. Nh5 $1 $18 {[%emt 0:01:42] Threatening mate with Qg5.} (21. Ng5 h6 22. Nh5 d3 23. Nxe6 fxe6 24. Qxf8+ Rxf8 25. Rxf8+ Kh7 $11) 21... h6 {[%emt 0:08:21] [#] Inhibits Qg5.} (21... Ne7 22. Nxg7 (22. Ng5 $2 Ng6 $17) 22... Kxg7) 22. Qg3 {[%emt 0:06:19]} (22. Nxg7 $142 $1 {[%mdl 512]} Kh7 (22... a5 23. Qxh6) 23. Ng5+ $1 {[%mdl 512]} hxg5 24. Qxg5 Qxc2 25. Rxc2) 22... g6 {[%emt 0:00:21] [#]} 23. Nh4 $2 {[%emt 0:00:29]} ({White must play} 23. Qf4 $1 $18 {[%cal Rf4h6]} Kh7 24. Nf6+ Kg7 25. Ne4 (25. Nh4 $2 d3 $19)) 23... Qc3 $1 $36 {[%emt 0:02:24][%mdl 2048] White must now prevent ...Qxg3. White is under pressure.} 24. Qf4 {[%emt 0:05:38][%mdl 8192] [#]} Qe3 $1 $19 {[%emt 0:01:20] Active counter play!} ({And not} 24... gxh5 25. Rf3 d3 26. Rg3+ Bg4 27. Qxh6 Qd4+ 28. Kh1 Qxe5 29. Nf5 $11) 25. Qf6 $2 {[%emt 0:09:54]} (25. Nf6+ {keeps fighting.} Kg7 26. Qf3 Qxf3 27. Nxf3) 25... gxh5 {[%emt 0:00:08]} 26. Nf3 {[%emt 0:00:49]} Qe4 {[%emt 0:04:06]} 27. Qxh6 {[%emt 0:00:24]} Qg6 {[%emt 0:00:32]} 28. Qf4 {[%emt 0:00:07]} Qg4 {[%emt 0:00:56]} 29. Qh6 {[%emt 0:00:25] Ng5 would kill now.} Qg6 {[%emt 0:00:06]} 30. Qf4 {[%emt 0:00:06]} d3 {[%emt 0:00:56] Black is clearly winning.} 31. c3 {[%emt 0:00:43]} Ne7 {[%emt 0:02:50]} 32. Nh4 {[%emt 0:00:38]} (32. Nd2 $142) 32... Qg4 {[%emt 0:00:28]} 33. Qh6 {[%emt 0:01:11]} d2 {[%emt 0:02:55]} 34. Rf4 {[%emt 0:00:37]} d1=Q {[%emt 0:00:27] Weighted Error Value: White=0.81/Black=0.50} 0-1

[Event "41st Zalakaros Festival 2022"]
[Site "Zalakaros"]
[Date "2022.06.12"]
[Round "8.10"]
[White "Okhotnik, Vladimir"]
[Black "Hrbolka, Ladislav"]
[Result "0-1"]
[ECO "B10"]
[WhiteElo "2336"]
[BlackElo "2193"]
[Annotator "TA"]
[PlyCount "108"]
[EventDate "2022.06.05"]
[EventType "swiss"]
[EventCountry "HUN"]
[SourceTitle "playchess.com"]
[Source "ChessBase"]
[SourceQuality "1"]
[TimeControl "40/5400+30:1800+30"]

{[%evp 14,108,12,15,23,0,0,0,47,1,7,0,0,-50,-52,-46,-51,-77,-53,-77,-73,-116,-119,-127,-136,-220,-208,-199,-202,-245,-247,-227,-140,-295,-287,-345,-262,-271,-260,-250,-217,-183,0,-265,-246,-218,-164,-394,-423,-410,-376,-810,-753,-1030,-1039,-1037,-1012,-997,-893,-1196,-1180,-2170,-1108,-1080,-937,-816,-776,-780,-758,-735,-717,-542,-465,-985,-895,-5527,-5531,-1593,-1190,-29970,-29969,-7044,-5930,-29984,-29986,-29986,-29987,-29987,-29988,-29988,-29986,-29986,-29987,-29987,-29988,-29986,-29987]} 1. e4 {[%emt 0:00:34]} c6 {[%emt 0:01:03]} 2. Nf3 {[%emt 0:00:10]} d5 {[%emt 0:00:05]} 3. Nc3 {[%emt 0:00:28]} dxe4 {[%emt 0:00:09]} 4. Nxe4 {[%emt 0:00:05]} Nf6 {[%emt 0:00:05]} 5. Nxf6+ {[%emt 0:01:06]} exf6 {[%emt 0:00:06]} 6. d4 {[%emt 0:00:18]} Bd6 {[%emt 0:00:06]} 7. Bd3 {[%emt 0:00:36] 7.Bd3 scores better than 7.Be2.} O-O {[%emt 0:00:08]} 8. Be3 {[%emt 0:01:25]} Na6 {[%emt 0:05:35] B15: Caro-Kann: 3 Nc3: 3...g6 and 3...dxe4 4 Nxe4 Nf6 5 Nxf6+ exf6.} 9. c3 {[%emt 0:01:04] Against Nb4} Nc7 {[%emt 0:00:10]} 10. Qc2 {[%emt 0:00:39]} h6 {[%emt 0:00:32]} (10... g6 $11) 11. c4 {[%emt 0:04:03] [#]} (11. O-O $14) 11... Bb4+ $146 {[%emt 0:07:07]} ({Predecessor:} 11... Na6 12. a3 Qa5+ 13. Nd2 f5 14. c5 Nb4 15. axb4 Qxa1+ 16. Nb1 f4 17. O-O Qa2 {0-1 (35) Yurtseven,C (2365)-Delaney,J (2205) Thessaloniki 1984}) 12. Kf1 {[%emt 0:00:42]} (12. Ke2 {is more complex.} Re8 13. Rhd1 Bd6 14. h3) 12... Re8 {[%emt 0:07:52]} 13. Nh4 {[%emt 0:04:44]} (13. h3 $11) 13... b5 {[%emt 0:02:40]} 14. b3 {[%emt 0:00:14]} a5 {[%emt 0:03:04]} 15. a4 {[%emt 0:04:12]} bxc4 {[%emt 0:01:45]} 16. bxc4 {[%emt 0:00:07]} Bf8 {[%emt 0:05:36]} 17. Be2 {[%emt 0:08:30]} Na6 {[%emt 0:04:24]} 18. g4 {[%emt 0:00:10]} Nb4 {[%emt 0:00:19]} 19. Qc3 {[%emt 0:00:16]} (19. Qd2 $17 {was worth a try.}) 19... g6 $19 {[%emt 0:04:13]} 20. h3 {[%emt 0:04:55]} f5 {[%emt 0:01:56]} 21. Nf3 {[%emt 0:00:39]} Bg7 {[%emt 0:00:44]} (21... fxg4 $2 22. hxg4 Bxg4 23. Re1 (23. Ne5 $2 Bxe2+ 24. Kxe2 c5 $19)) 22. Rd1 {[%emt 0:01:01]} Ra7 {[%emt 0:07:43]} (22... fxg4 23. hxg4 Bxg4 24. Bxh6 $15) 23. Qd2 $2 {[%emt 0:03:33]} (23. g5 $17 {is the only way for White.}) 23... Rae7 {[%emt 0:00:08] [#] ...f4 is the strong threat.} (23... fxg4 24. hxg4 Bxg4 25. Bxh6 Rxe2 26. Qf4 (26. Qxe2 $2 Bxh6 27. Re1 Bxf3 $19) 26... Bxf3 27. Bxg7 Kxg7 28. Qh6+ Kf6 29. Qf4+ Ke7 30. Qxf3 $19) 24. Ng1 {[%emt 0:07:08]} Kh7 {[%emt 0:01:06]} 25. Bf3 {[%emt 0:01:18]} Ba6 {[%emt 0:02:21]} 26. Qc1 {[%emt 0:05:22]} Nd5 {[%emt 0:02:22]} 27. Bd2 {[%emt 0:00:27]} Nb4 $2 {[%emt 0:05:04]} (27... Bxd4 28. Kg2 Nb4 29. Bxh6 $17) (27... c5 $19 28. Kg2 Nb4 29. dxc5 Nd3 30. Bxa5 Qd4 31. Rxd3 Qxd3) 28. Bxb4 $4 {[%emt 0:05:47][%mdl 8192]} (28. Be3 $1 $11 {and White stays safe.}) 28... axb4 {[%emt 0:00:11]} 29. Bxc6 {[%emt 0:00:30]} fxg4 {[%emt 0:01:47]} 30. Kg2 $2 {[%emt 0:05:11]} (30. hxg4 {keeps fighting.} Qc8 31. Bb5) 30... Rc7 {[%emt 0:05:07]} 31. Bxe8 {[%emt 0:05:54] Hoping for Bb5.} Bxc4 {[%emt 0:00:17] And now ...Bd5+ would win.} (31... Qxe8 32. hxg4 Bxc4 33. Kg3 $17) 32. Qd2 $2 {[%emt 0:03:53]} (32. Qf4 Bd5+ 33. Kf1 (33. Kh2 $2 Bf8 $19) 33... Bxh1 34. hxg4) 32... Bd5+ {[%emt 0:01:56][%mdl 64] [#] Skewer} 33. f3 {[%emt 0:00:10]} gxf3+ {[%emt 0:04:09]} 34. Nxf3 {[%emt 0:00:28]} Rc3 {[%emt 0:04:33]} 35. Rhf1 {[%emt 0:01:04]} Qxe8 {[%emt 0:00:18]} 36. Rf2 {[%emt 0:02:13]} Qxa4 {[%emt 0:03:57] aiming for ...Bxf3+.} 37. Rc1 {[%emt 0:00:22]} Qc6 {[%emt 0:04:32][%cal Rd5f3]} 38. Rxc3 {[%emt 0:00:46]} bxc3 {[%emt 0:00:05]} ({And not} 38... Qxc3 39. Qxc3 bxc3 40. Kg3 $19) 39. Qd1 {[%emt 0:01:47]} c2 {[%emt 0:04:19]} 40. Qxc2 {[%emt 0:00:00]} Bxf3+ {[%emt 0:00:00] A strong pair of Bishops.} 41. Kg3 {[%emt 0:02:24]} Qxc2 {[%emt 0:01:31]} 42. Rxc2 {[%emt 0:00:04]} Be4 {[%emt 0:00:26]} 43. Rc4 {[%emt 0:00:28]} (43. Rc7 $142 Bd5 44. Rc5) 43... g5 {[%emt 0:00:56]} 44. h4 {[%emt 0:00:33]} Kg6 {[%emt 0:00:49]} 45. Ra4 {[%emt 0:00:12]} f5 {[%emt 0:01:54]} 46. hxg5 {[%emt 0:00:06]} hxg5 {[%emt 0:00:24][%cal Bh6g5,Bg5g4,Bg4g3][%mdl 32]} 47. Ra6+ {[%emt 0:00:05]} Kh5 {[%emt 0:00:47]} 48. Rd6 {[%emt 0:00:22]} f4+ {[%emt 0:00:48] Black mates.} 49. Kf2 {[%emt 0:00:18]} g4 {[%emt 0:00:37]} 50. Rd7 {[%emt 0:00:08]} g3+ {[%emt 0:00:55]} 51. Kf1 {[%emt 0:00:09]} f3 {[%emt 0:02:29]} 52. Rxg7 {[%emt 0:00:33]} Bd3+ {[%emt 0:00:05]} 53. Ke1 {[%emt 0:00:10]} f2+ {[%emt 0:00:06]} 54. Kd2 {[%emt 0:00:08]} f1=Q {Weighted Error Value: White=1.02/Black=0.28 (precise)} 0-1